bitfinex/quotes_SOLUSD_20260118
["timestamp","ask_amount","ask_price","bid_price","bid_amount"]
[1768761997349,10.27387002,142.58,142.54,3.56566958]
[1768762000371,10.27387002,142.58,142.55,3.56566958]
[1768762001271,3.2621726,142.57,142.54,3.56566958]
[1768762001465,7.01395803,142.58,142.54,3.56566958]
[1768762001660,10.27339177,142.58,142.54,3.56566958]
[1768762003687,17.53222767,142.6,142.54,3.56566958]
[1768762003688,10.26678755,142.6,142.56,3.56566958]
[1768762006563,10.26678755,142.6,142.56,5.68245031]
[1768762007088,10.26678755,142.6,142.56,3.56566958]
[1768762007288,10.26678755,142.6,142.56,5.68245031]
[1768762010282,10.26678755,142.6,142.56,3.56566958]
[1768762010474,10.26678755,142.6,142.56,5.68245031]
[1768762012488,10.24115846,142.61,142.58,3.74345206]
[1768762013367,7.01174678,142.62,142.59,3.74345206]
[1768762013565,10.23772141,142.63,142.59,5.86023279]
[1768762013768,3.22656378,142.62,142.59,5.86023279]
[1768762014490,3.22656378,142.62,142.59,3.74345206]
[1768762014688,3.22656378,142.62,142.59,5.86023279]
[1768762015187,3.22193081,142.6,142.57,3.74345206]
[1768762018490,3.22193081,142.6,142.57,5.86023279]
[1768762020398,3.22193081,142.6,142.57,12.87431174]
[1768762021479,3.20865722,142.61,142.58,3.74345206]
[1768762021681,3.20865722,142.61,142.58,5.86023279]
[1768762021983,10.22046669,142.62,142.59,3.74345206]
[1768762022385,3.20653303,142.61,142.59,3.74345206]
[1768762022589,3.20653303,142.61,142.58,2.11678073]
[1768762022590,3.20653303,142.61,142.58,5.86023279]
[1768762022987,3.20653303,142.63,142.6,3.74345206]
[1768762023979,10.21539111,142.64,142.6,3.74345206]
[1768762024183,10.21539111,142.64,142.61,3.74345206]
[1768762024379,10.21539111,142.64,142.61,5.86023279]
[1768762025098,10.21539111,142.64,142.61,3.74345206]
[1768762025997,0.1,142.65,142.63,10.75452032]
[1768762027881,0.1,142.65,142.64,3.74345206]
[1768762028096,0.1,142.67,142.65,3.74345206]
[1768762029275,0.1,142.67,142.66,3.74345206]
[1768762031689,0.1,142.68,142.66,3.74345206]
[1768762032287,0.1,142.68,142.65,3.74345206]
[1768762033582,7.10869817,142.68,142.65,3.74345206]
[1768762033906,0.1,142.68,142.65,3.74345206]
[1768762036209,0.1,142.68,142.66,3.74345206]
[1768762036796,0.1,142.68,142.65,3.74345206]
[1768762037887,0.1,142.68,142.66,3.74345206]
[1768762038284,10.41252154,142.69,142.66,3.74345206]
[1768762038488,10.41252154,142.69,142.65,10.75356479]
[1768762038709,10.41252154,142.69,142.66,3.74345206]
[1768762040015,3.4042859,142.69,142.66,10.75311572]
[1768762040711,12.52947667,142.69,142.65,3.74345206]
[1768762042498,3.36703464,142.68,142.65,3.74345206]
[1768762044716,10.37574936,142.68,142.65,3.74345206]
[1768762046323,3.36041094,142.67,142.64,3.59664769]
[1768762046712,3.36041094,142.67,142.63,3.59664769]
[1768762047114,3.36041094,142.67,142.64,3.59664769]
[1768762048626,3.36041094,142.67,142.64,10.60726818]
[1768762050614,3.36041094,142.67,142.64,28.13390867]
[1768762052824,2.11678073,142.68,142.64,28.13390867]
[1768762054121,2.14167784,142.69,142.64,28.13390867]
[1768762054522,2.14167784,142.69,142.66,7.00967334]
[1768762055030,0.02489711,142.69,142.66,7.00967334]
[1768762055526,0.02489711,142.69,142.67,3.38615336]
[1768762056536,0.02489711,142.69,142.68,10.39484413]
[1768762057434,0.1,142.72,142.69,3.67388708]
[1768762058517,0.1,142.72,142.7,7.00770847]
[1768762058711,0.1,142.72,142.7,10.68159555]
[1768762059328,1.2315,142.73,142.71,3.67388708]
[1768762059721,1.2315,142.73,142.7,10.68159555]
[1768762060635,2.11253812,142.72,142.68,3.67388708]
[1768762060824,1.2315,142.73,142.68,2.11253812]
[1768762061025,1.2315,142.73,142.69,3.67388708]
[1768762061230,3.34403812,142.73,142.69,3.67388708]
[1768762061927,3.34403812,142.73,142.7,7.00770847]
[1768762062126,3.34403812,142.73,142.7,10.68159555]
[1768762062529,1.2315,142.73,142.7,10.68159555]
[1768762062720,1.2315,142.73,142.71,3.67388708]
[1768762064322,1.2315,142.73,142.7,3.67388708]
[1768762064550,3.34403812,142.73,142.7,3.67388708]
[1768762065030,3.34403812,142.73,142.69,28.20258565]
[1768762065224,2.11253812,142.71,142.69,7.00819959]
[1768762065529,2.11253812,142.72,142.69,10.68208667]
[1768762068138,1.2315,142.73,142.69,10.68208667]
[1768762068339,2.11253812,142.72,142.69,10.68208667]
[1768762069536,2.11253812,142.72,142.7,3.67388708]
[1768762070335,2.11253812,142.72,142.68,3.67388708]
[1768762070540,2.11253812,142.72,142.69,7.00819959]
[1768762070833,2.11253812,142.72,142.69,10.68208667]
[1768762071834,1.2315,142.73,142.69,10.68208667]
[1768762072050,2.11253812,142.72,142.69,10.68208667]
[1768762072624,1.2315,142.73,142.69,10.68208667]
[1768762072823,2.11253812,142.71,142.69,10.68208667]
[1768762073021,1.2315,142.73,142.69,10.68208667]
[1768762073220,2.11253812,142.71,142.69,10.68208667]
[1768762073445,2.11253812,142.72,142.69,10.68208667]
[1768762074742,2.11253812,142.7,142.68,7.00866684]
[1768762074930,8.23798275,142.73,142.69,7.00814847]
[1768762075236,2.11253812,142.7,142.67,3.28360611]
[1768762075442,8.23798275,142.73,142.67,3.28360611]
[1768762075632,2.11253812,142.71,142.67,3.28360611]
[1768762077235,2.11253812,142.71,142.68,7.00869077]
[1768762077544,2.11253812,142.7,142.68,7.00869077]
[1768762078155,3.34403812,142.73,142.68,7.00869077]
[1768762078336,2.11253812,142.7,142.68,7.00869077]
[1768762078649,8.23787924,142.73,142.68,7.00869077]
[1768762078840,2.11253812,142.7,142.68,7.00869077]
[1768762081343,2.11253812,142.71,142.69,3.28360611]
[1768762081544,2.11253812,142.71,142.68,10.29229688]
[1768762081929,1.2315,142.73,142.69,3.28360611]
[1768762082141,2.11253812,142.71,142.69,3.28360611]
[1768762082341,1.2315,142.73,142.69,3.28360611]
[1768762082647,3.34403812,142.73,142.69,3.28360611]
[1768762083225,3.34403812,142.73,142.7,10.29131458]
[1768762085252,1.2315,142.73,142.7,10.29131458]
[1768762085427,3.34403812,142.73,142.7,10.29131458]
[1768762086151,2.11253812,142.72,142.7,10.29131458]
[1768762089339,1.2315,142.73,142.7,10.29131458]
[1768762089541,2.11253812,142.72,142.7,10.29131458]
[1768762090834,2.11253812,142.72,142.68,27.81402382]
[1768762091036,2.11253812,142.72,142.69,3.28360611]
[1768762091951,2.11253812,142.72,142.7,10.29131458]
[1768762094349,1.2315,142.73,142.71,3.28360611]
[1768762094567,3.34403812,142.73,142.71,3.28360611]
[1768762094742,3.34403812,142.73,142.7,3.28360611]
[1768762095244,1.2315,142.73,142.7,3.28360611]
[1768762095440,3.34403812,142.73,142.7,10.2913069]
[1768762095656,2.11253812,142.72,142.69,3.28360611]
[1768762097452,2.11253812,142.72,142.69,10.29172239]
[1768762097652,1.2315,142.73,142.69,10.29172239]
[1768762097653,2.11253812,142.71,142.69,10.29172239]
[1768762097844,2.11253812,142.72,142.69,10.29172239]
[1768762098255,1.2315,142.73,142.7,3.28360611]
[1768762098650,3.34403812,142.73,142.7,3.28360611]
[1768762099570,3.34403812,142.73,142.71,7.00721743]
[1768762100453,2.11253812,142.72,142.68,3.28360611]
[1768762100649,2.11253812,142.72,142.69,10.29179157]
[1768762101863,10.35027469,142.73,142.69,10.29179157]
[1768762102085,8.23773657,142.73,142.69,10.29179157]
[1768762102254,10.35027469,142.73,142.69,10.29179157]
[1768762102858,8.23773657,142.73,142.69,10.29179157]
[1768762103041,1.2315,142.73,142.7,3.24838074]
[1768762105347,8.23774724,142.73,142.68,3.24838074]
[1768762105548,2.11253812,142.71,142.68,3.24838074]
[1768762105750,2.11253812,142.72,142.68,3.24838074]
[1768762106051,1e-08,142.75,142.71,2.11253812]
[1768762106251,1e-08,142.75,142.72,2.11253812]
[1768762106455,1e-08,142.75,142.73,3.24838074]
[1768762106768,1e-08,142.77,142.74,3.24838074]
[1768762107363,1e-08,142.78,142.77,3.24838074]
[1768762108269,1e-08,142.78,142.76,10.25314397]
[1768762110467,1e-08,142.78,142.77,3.24838074]
[1768762111357,1e-08,142.78,142.76,10.25314397]
[1768762113480,1e-08,142.78,142.77,10.25265334]
[1768762118369,2.11253812,142.8,142.78,3.51140463]
[1768762118768,3.49852208,142.82,142.78,3.51140463]
[1768762118983,5.60851511,142.82,142.78,3.51140463]
[1768762119186,3.49852208,142.82,142.78,3.51140463]
[1768762119366,3.49852208,142.83,142.78,3.51140463]
[1768762119567,2.10999303,142.82,142.78,3.51140463]
[1768762119770,5.60851511,142.82,142.78,3.51140463]
[1768762119983,5.60851511,142.82,142.79,3.51140463]
[1768762120189,2.10999303,142.81,142.79,3.51140463]
[1768762120363,3.49852208,142.82,142.79,3.51140463]
[1768762120563,2.10999303,142.81,142.79,3.51140463]
[1768762120782,3.49852208,142.82,142.79,3.51140463]
[1768762120991,2.10999303,142.81,142.79,3.51140463]
[1768762121586,2.10999303,142.81,142.79,10.51458681]
[1768762121892,3.49852208,142.82,142.79,10.51458681]
[1768762122186,2.10999303,142.81,142.79,10.51458681]
[1768762122884,2.10999303,142.81,142.79,3.51140463]
[1768762123074,2.10999303,142.81,142.78,3.51140463]
[1768762124188,5.60851511,142.81,142.78,10.51478005]
[1768762124692,3.49852208,142.81,142.78,10.51478005]
[1768762124991,5.60851511,142.81,142.78,10.51478005]
[1768762125963,5.60851511,142.82,142.79,10.51442477]
[1768762127078,3.49852208,142.82,142.79,10.51442477]
[1768762127282,5.60851511,142.82,142.79,10.51442477]
[1768762129184,2.10999303,142.81,142.79,10.51442477]
[1768762129386,2.10999303,142.81,142.79,3.51140463]
[1768762129578,2.10999303,142.81,142.79,10.51452317]
[1768762131694,3.49852208,142.82,142.79,10.51452317]
[1768762131898,7.00135347,142.83,142.8,3.51140463]
[1768762132199,5.60851511,142.82,142.79,3.51140463]
[1768762132496,2.10999303,142.81,142.79,3.51140463]
[1768762133201,3.49852208,142.82,142.79,3.51140463]
[1768762133372,2.10999303,142.81,142.79,10.51466625]
[1768762133775,2.10999303,142.82,142.8,3.59420073]
[1768762133975,2.10999303,142.81,142.79,10.59746235]
[1768762137204,3.48093285,142.82,142.79,10.59746235]
[1768762137706,2.10999303,142.81,142.79,10.59746235]
[1768762139306,5.59092588,142.81,142.79,10.59746235]
[1768762140484,3.48093285,142.82,142.79,10.59746235]
[1768762140802,2.10999303,142.81,142.79,10.59746235]
[1768762141682,5.59092588,142.81,142.79,7.00326162]
[1768762142184,22.34135347,142.83,142.8,3.59420073]
[1768762142185,18.82093285,142.83,142.8,3.59420073]
[1768762142490,2.10999303,142.82,142.8,3.59420073]
[1768762142792,18.82093285,142.84,142.8,3.59420073]
[1768762142995,6.99994237,142.86,142.79,26.62148351]
[1768762143185,22.33986867,142.86,142.81,3.59420073]
[1768762143381,2.10999303,142.84,142.81,3.59420073]
[1768762144105,2.10999303,142.84,142.82,7.00182047]
[1768762144986,2.10999303,142.83,142.81,10.59640215]
[1768762145310,3.48093285,142.84,142.81,10.59640215]
[1768762145516,2.10999303,142.83,142.81,10.59640215]
[1768762145689,3.48093285,142.84,142.81,10.59640215]
[1768762145891,2.10999303,142.83,142.81,10.59640215]
[1768762147290,5.59092588,142.83,142.81,7.00220142]
[1768762147492,2.10999303,142.83,142.81,10.59640215]
[1768762149117,2.10999303,142.82,142.81,7.00220142]
[1768762150507,5.59092588,142.83,142.81,7.00220142]
[1768762152107,3.48093285,142.83,142.81,7.00220142]
[1768762152421,5.59092588,142.83,142.81,7.00220142]
[1768762152620,2.10999303,142.82,142.81,7.00220142]
[1768762153914,3.48093285,142.83,142.81,6.97220142]
[1768762154301,2.10999303,142.82,142.81,6.97220142]
[1768762154505,2.10999303,142.82,142.8,3.59420073]
[1768762155212,5.59092588,142.83,142.8,3.59420073]
[1768762155527,5.59092588,142.83,142.81,7.00220142]
[1768762155722,5.59092588,142.83,142.81,6.97220142]
[1768762155931,2.10999303,142.82,142.8,10.59690583]
[1768762156522,3.48093285,142.83,142.8,10.59690583]
[1768762156727,2.10999303,142.82,142.8,10.59690583]
[1768762157525,3.48093285,142.83,142.8,10.59690583]
[1768762157834,2.10999303,142.82,142.8,10.59690583]
[1768762158141,3.48093285,142.83,142.8,10.59690583]
[1768762158505,5.59092588,142.83,142.8,10.59690583]
[1768762164410,3.48093285,142.83,142.8,10.59690583]
[1768762164614,5.59092588,142.83,142.8,10.59690583]
[1768762167015,3.48093285,142.83,142.8,10.59690583]
[1768762167211,3.78254781,142.81,142.79,7.00329154]
[1768762167837,7.00084665,142.84,142.79,10.55017317]
[1768762168015,2.10999303,142.81,142.79,10.55017317]
[1768762168215,7.00084665,142.84,142.79,10.55017317]
[1768762168421,2.10999303,142.82,142.79,10.55017317]
[1768762168730,22.34054465,142.85,142.79,10.55017317]
[1768762169132,2.10999303,142.82,142.79,10.55017317]
[1768762169713,2.10999303,142.83,142.8,3.54688163]
[1768762170120,3.45516162,142.84,142.81,3.54688163]
[1768762170927,2.10999303,142.82,142.79,24.5115204]
[1768762171215,22.34040557,142.85,142.78,3.82708163]
[1768762171637,2.10999303,142.8,142.78,3.82708163]
[1768762171813,22.34040557,142.85,142.77,3.54688163]
[1768762172014,2.10999303,142.79,142.77,3.54688163]
[1768762172633,22.34040557,142.85,142.77,3.54688163]
[1768762172831,7.0008401,142.84,142.78,7.00378204]
[1768762173044,2.10999303,142.79,142.78,10.55066367]
[1768762173241,0.02667406,142.81,142.78,10.55066367]
[1768762173413,2.10999303,142.79,142.78,10.55066367]
[1768762173613,0.02667406,142.81,142.78,7.00378204]
[1768762173828,2.10999303,142.79,142.78,7.00378204]
[1768762174221,0.02667406,142.81,142.78,7.00378204]
[1768762174421,2.10999303,142.8,142.78,7.00378204]
[1768762175238,0.02667406,142.81,142.78,7.00378204]
[1768762175437,2.10999303,142.8,142.78,10.55066367]
[1768762176632,2.10999303,142.8,142.78,7.00378204]
[1768762177154,2.18953353,142.8,142.78,7.00378204]
[1768762178943,2.11053025,142.8,142.78,10.74724462]
[1768762179634,0.10773809,142.81,142.78,10.74724462]
[1768762179849,2.11053025,142.8,142.78,10.74724462]
[1768762181144,2.24582189,142.8,142.77,21.25357445]
[1768762181530,2.11053025,142.8,142.78,3.74346258]
[1768762181719,0.14883152,142.81,142.78,3.74346258]
[1768762181924,2.11053025,142.8,142.78,3.74346258]
[1768762182923,0.14883152,142.81,142.78,3.74346258]
[1768762183119,2.25936177,142.81,142.78,3.74346258]
[1768762184240,2.25936177,142.81,142.78,10.74704952]
[1768762186549,2.32476377,142.81,142.77,28.25784705]
[1768762187453,2.32476377,142.81,142.78,3.74346258]
[1768762188050,0.21423352,142.81,142.78,10.74705531]
[1768762188250,2.32476377,142.81,142.78,10.74705531]
[1768762199847,0.21423352,142.81,142.78,10.74705531]
[1768762200050,2.32476377,142.81,142.78,10.74705531]
[1768762200659,0.21423352,142.81,142.78,10.74705531]
[1768762200855,0.38922768,142.82,142.79,3.85967468]
[1768762201033,2.49975793,142.82,142.79,3.85967468]
[1768762203049,0.410352,142.79,142.75,3.85967468]
[1768762203241,2.46088226,142.79,142.76,3.85967468]
[1768762203658,2.11053025,142.79,142.76,3.85967468]
[1768762203859,39.84668867,142.82,142.77,3.85967468]
[1768762204060,2.11053025,142.79,142.77,3.85967468]
[1768762204256,2.05053026,142.79,142.77,3.85967468]
[1768762204645,7.00285394,142.8,142.77,3.85967468]
[1768762204845,7.00285394,142.8,142.76,3.85967468]
[1768762205347,2.11053025,142.78,142.76,3.85967468]
[1768762206053,2.49166755,142.77,142.74,3.85967468]
[1768762206253,2.11053025,142.77,142.74,3.85967468]
[1768762207050,7.00383893,142.78,142.75,3.85967468]
[1768762207450,2.11053025,142.77,142.75,3.85967468]
[1768762207852,7.00383893,142.78,142.75,3.85967468]
[1768762208052,2.11053025,142.77,142.75,3.85967468]
[1768762208459,7.00333576,142.79,142.76,3.85967468]
[1768762208663,7.00231076,142.81,142.76,3.85967468]
[1768762208853,2.11053025,142.8,142.76,3.85967468]
[1768762209867,2.11053025,142.8,142.77,3.85967468]
[1768762213553,9.11336578,142.8,142.77,3.85967468]
[1768762214859,2.11053025,142.78,142.74,3.85967468]
[1768762215070,2.11053025,142.78,142.74,4.15967468]
[1768762215266,2.11053025,142.77,142.75,3.85967468]
[1768762215458,2.11053025,142.78,142.75,3.85967468]
[1768762218383,7.50649785,142.8,142.76,3.85967468]
[1768762218675,2.11053025,142.79,142.76,3.85967468]
[1768762221374,2.05053026,142.79,142.76,3.85967468]
[1768762222969,7.50649785,142.8,142.76,3.85967468]
[1768762223170,2.11053025,142.79,142.76,3.85967468]
[1768762225593,2.11053025,142.78,142.76,3.85967468]
[1768762226463,1.50053672,142.78,142.76,4.08388312]
[1768762228278,1.44053673,142.78,142.76,4.08388312]
[1768762232388,7.00331879,142.79,142.76,4.08388312]
[1768762232593,9.11384904,142.79,142.76,4.08388312]
[1768762233088,2.11053025,142.78,142.76,4.08388312]
[1768762233786,2.05053026,142.78,142.76,4.08388312]
[1768762233985,7.00331879,142.79,142.76,4.08388312]
[1768762234187,2.11053025,142.78,142.76,4.08388312]
[1768762234973,2.05053026,142.78,142.76,4.08388312]
[1768762235172,1.99053027,142.78,142.76,4.08388312]
[1768762236896,7.00331879,142.79,142.76,4.08388312]
[1768762237068,2.11053025,142.78,142.76,4.08388312]
[1768762237968,9.78118472,142.78,142.75,4.02564977]
[1768762238176,2.11053025,142.77,142.75,4.02564977]
[1768762239301,2.78419137,142.77,142.74,4.02564977]
[1768762239478,2.11053025,142.77,142.74,4.02564977]
[1768762240997,2.11132261,142.77,142.75,4.02564977]
[1768762241576,9.79554827,142.78,142.75,4.02564977]
[1768762242992,9.73554828,142.78,142.75,4.02564977]
[1768762243796,0.70662707,142.79,142.75,4.02564977]
[1768762243994,2.81794968,142.78,142.75,4.02564977]
[1768762245302,9.8219464,142.78,142.75,4.02564977]
[1768762250295,0.74969447,142.79,142.75,4.02564977]
[1768762250500,2.11132261,142.78,142.75,4.02564977]
[1768762253306,9.11526748,142.78,142.75,4.02564977]
[1768762255411,9.89920393,142.78,142.75,4.02564977]
[1768762256509,7.78788132,142.78,142.75,4.02564977]
[1768762256713,9.89920393,142.78,142.75,4.02564977]
[1768762257300,9.83920394,142.78,142.75,4.02564977]
[1768762261707,2.11132261,142.77,142.75,4.02564977]
[1768762261914,7.72788133,142.78,142.75,4.02564977]
[1768762262096,9.83920394,142.78,142.75,4.02564977]
[1768762265007,0.83104828,142.77,142.73,10.8383302]
[1768762265207,0.83104828,142.76,142.73,10.8383302]
[1768762265816,9.95158851,142.77,142.74,3.83216565]
[1768762266013,2.11132261,142.76,142.74,3.83216565]
[1768762268112,0.84569472,142.78,142.75,3.83216565]
[1768762268293,17.45132261,142.78,142.75,3.83216565]
[1768762268999,15.34,142.78,142.75,3.83216565]
[1768762269521,15.34,142.78,142.76,3.83216565]
[1768762270506,2.11132261,142.79,142.77,3.83216565]
[1768762270920,2.97116485,142.79,142.76,10.83687062]
[1768762274222,2.97116485,142.79,142.76,3.83216565]
[1768762276325,2.99803056,142.78,142.75,10.83723749]
[1768762276519,2.99803056,142.77,142.74,3.83216565]
[1768762277804,3.00232991,142.76,142.73,10.83811054]
[1768762278125,2.11132261,142.76,142.73,10.83811054]
[1768762278922,23.23529709,142.77,142.73,10.83811054]
[1768762279121,2.11132261,142.76,142.74,3.83216565]
[1768762282636,15.34,142.77,142.74,11.30087901]
[1768762282933,17.45132261,142.77,142.74,11.30087901]
[1768762284130,18.37107395,142.77,142.74,11.30087901]
[1768762285138,2.11132261,142.75,142.73,4.29518618]
[1768762285316,2.11132261,142.75,142.71,17.51754618]
[1768762285709,2.11132261,142.75,142.72,7.00641258]
[1768762286211,6.20824907,142.75,142.72,7.00641258]
[1768762287338,6.20824907,142.75,142.72,11.30159876]
[1768762288211,4.09692646,142.75,142.72,11.30159876]
[1768762288419,4.09692646,142.76,142.73,4.29518618]
[1768762288618,2.11132261,142.75,142.73,4.29518618]
[1768762290041,6.20824907,142.74,142.71,7.00705496]
[1768762290226,6.20824907,142.73,142.7,4.57548618]
[1768762290418,2.11132261,142.73,142.7,4.57548618]
[1768762291527,2.11132261,142.73,142.71,11.30237384]
[1768762291916,2.11132261,142.73,142.71,4.29518618]
[1768762292130,6.20824907,142.73,142.71,4.29518618]
[1768762292729,6.20824907,142.73,142.7,11.58300231]
[1768762293124,2.11132261,142.72,142.7,4.57548618]
[1768762293332,6.20824907,142.72,142.7,0.2803]
[1768762293639,2.11132261,142.71,142.7,0.2803]
[1768762294137,6.20824907,142.72,142.7,0.2503]
[1768762297319,7.00624451,142.73,142.7,4.35996503]
[1768762297320,4.21923275,142.73,142.7,4.35996503]
[1768762297723,7.00592508,142.74,142.71,4.10966503]
[1768762297927,2.11132261,142.73,142.71,4.10966503]
[1768762298126,26.56515783,142.74,142.71,4.10966503]
[1768762298332,2.11132261,142.73,142.71,4.10966503]
[1768762299746,6.33055536,142.73,142.7,4.35996503]
[1768762300944,6.3317433,142.73,142.7,4.35996503]
[1768762303622,6.3317433,142.72,142.7,0.2503]
[1768762304859,4.21923275,142.72,142.7,0.2503]
[1768762305025,6.3317433,142.72,142.7,0.2503]
[1768762305426,6.3317433,142.72,142.68,4.10966503]
[1768762305427,6.3317433,142.71,142.68,4.10966503]
[1768762305644,2.11251055,142.7,142.68,4.10966503]
[1768762306646,13.33950561,142.7,142.66,7.00954792]
[1768762306834,13.33950561,142.7,142.67,4.10966503]
[1768762307034,9.12027286,142.7,142.67,4.10966503]
[1768762307842,2.11251055,142.7,142.67,4.10966503]
[1768762308527,2.11251055,142.7,142.68,4.10966503]
[1768762311954,9.119361,142.72,142.69,4.10966503]
[1768762312634,6.3317433,142.73,142.69,4.10966503]
[1768762313051,26.34209858,142.74,142.69,4.10966503]
[1768762313240,2.11251055,142.73,142.69,4.10966503]
[1768762314162,9.1187908,142.73,142.69,4.10966503]
[1768762314355,7.00628025,142.73,142.7,3.89916039]
[1768762314659,13.11483829,142.73,142.7,3.89916039]
[1768762320358,13.11536152,142.72,142.69,3.89916039]
[1768762321647,2.11251055,142.72,142.7,3.89916039]
[1768762322162,13.11500107,142.73,142.7,3.89916039]
[1768762323145,3.99604749,142.71,142.68,10.90785116]
[1768762323366,6.10855804,142.72,142.69,3.89916039]
[1768762327064,13.11556217,142.72,142.69,3.89916039]
[1768762329265,11.00305162,142.72,142.69,3.89916039]
[1768762329563,13.11556217,142.72,142.69,3.89916039]
[1768762330749,11.00305162,142.72,142.69,3.89916039]
[1768762331049,13.11556217,142.72,142.69,3.89916039]
[1768762332665,7.00700413,142.72,142.69,3.89916039]
[1768762332967,2.11251055,142.72,142.69,3.89916039]
[1768762333843,26.02574927,142.73,142.69,3.89916039]
[1768762335372,9.11936232,142.72,142.69,3.89916039]
[1768762335669,13.11540981,142.72,142.69,3.89916039]
[1768762336976,6.10855804,142.71,142.68,3.89916039]
[1768762337183,7.00685177,142.72,142.67,10.90818368]
[1768762337184,3.99604749,142.7,142.67,10.90818368]
[1768762337356,6.10855804,142.7,142.67,10.90818368]
[1768762337761,6.10855804,142.7,142.67,3.89916039]
[1768762340462,7.00730997,142.71,142.68,3.89916039]
[1768762340463,11.00335746,142.71,142.68,3.89916039]
[1768762340763,13.11586801,142.71,142.68,3.89916039]
[1768762340973,6.10855804,142.71,142.68,3.89916039]
[1768762341681,3.99604749,142.71,142.68,3.89916039]
[1768762341871,6.10855804,142.71,142.68,3.89916039]
[1768762343277,3.99604749,142.71,142.68,3.89916039]
[1768762343877,6.10855804,142.71,142.68,3.89916039]
[1768762345060,13.11579855,142.71,142.68,3.89916039]
[1768762346676,3.82791496,142.74,142.7,4.06737637]
[1768762346871,15.36,142.73,142.7,4.06737637]
[1768762347479,15.36,142.73,142.71,4.06737637]
[1768762350285,10.83367818,142.74,142.71,4.06737637]
[1768762350872,12.94618873,142.74,142.71,4.06737637]
[1768762351069,10.83367818,142.74,142.71,4.06737637]
[1768762351374,12.94618873,142.74,142.71,4.06737637]
[1768762352875,3.82791496,142.73,142.7,7.00743084]
[1768762353076,5.94042551,142.73,142.7,11.07480721]
[1768762353666,3.82791496,142.73,142.7,11.07480721]
[1768762356189,10.83367818,142.74,142.71,4.06737637]
[1768762356379,12.94618873,142.74,142.71,4.06737637]
[1768762361004,12.94587634,142.74,142.71,4.06737637]
[1768762361205,10.83367818,142.74,142.71,4.06737637]
[1768762361403,4.04003246,142.73,142.71,4.06737637]
[1768762361907,13.15799384,142.74,142.71,4.06737637]
[1768762365510,4.04003246,142.79,142.74,3.83415107]
[1768762365710,19.38003246,142.78,142.75,3.83415107]
[1768762366618,26.38408801,142.78,142.75,3.83415107]
[1768762368027,11.04408801,142.78,142.75,3.83415107]
[1768762369726,13.15628617,142.78,142.75,3.83415107]
[1768762371214,6.15223062,142.77,142.74,3.83415107]
[1768762371427,4.04003246,142.76,142.74,3.83415107]
[1768762373013,4.0945241,142.77,142.74,3.83415107]
[1768762373225,2.11219816,142.77,142.74,3.83415107]
[1768762374038,11.09857965,142.78,142.74,3.83415107]
[1768762374237,2.11219816,142.77,142.74,3.83415107]
[1768762377021,9.11649491,142.77,142.74,3.83415107]
[1768762377637,13.21101901,142.77,142.74,3.83415107]
[1768762378243,6.20672226,142.76,142.74,3.83415107]
[1768762378626,6.20672226,142.76,142.73,3.89256199]
[1768762380449,2.11219816,142.76,142.73,3.89256199]
[1768762381234,11.09882085,142.77,142.73,3.89256199]
[1768762381543,2.11219816,142.76,142.73,3.89256199]
[1768762382046,13.21101901,142.77,142.73,3.89256199]
[1768762382346,11.09882085,142.77,142.73,3.89256199]
[1768762382550,13.21101901,142.77,142.73,3.89256199]
[1768762382927,13.21101901,142.77,142.74,3.89256199]
[1768762383429,1e-08,142.88,142.84,24.50294035]
[1768762383630,0.1,142.93,142.87,2.11219816]
[1768762383829,0.1,142.93,142.85,70.51817532]
[1768762383830,4.1945241,142.93,142.84,24.50294035]
[1768762384042,15.34,142.91,142.87,19.5345241]
[1768762384244,19.4345241,142.91,142.87,19.5345241]
[1768762384429,6.20672226,142.9,142.84,24.50294035]
[1768762384637,6.20672226,142.9,142.84,9.11303826]
[1768762385351,6.20672226,142.9,142.84,7.0008401]
[1768762385929,4.0945241,142.89,142.84,7.0008401]
[1768762386130,2.11219816,142.87,142.84,7.0008401]
[1768762386349,15.34,142.87,142.84,7.0008401]
[1768762386851,17.45219816,142.87,142.84,7.0008401]
[1768762387637,2.11219816,142.85,142.8,17.50690426]
[1768762387833,2.11219816,142.84,142.8,17.50690426]
[1768762388158,17.45219816,142.83,142.8,7.00269948]
[1768762388529,17.45219816,142.83,142.81,7.00224294]
[1768762388725,15.34,142.83,142.81,7.00224294]
[1768762388946,15.34,142.83,142.79,24.5115204]
[1768762389145,13.79710184,142.83,142.79,24.5115204]
[1768762389751,15.34,142.84,142.79,24.5115204]
[1768762389931,2.11219816,142.83,142.79,24.5115204]
[1768762392353,15.34,142.84,142.79,24.5115204]
[1768762392554,2.11219816,142.83,142.79,24.5115204]
[1768762392754,15.34,142.84,142.79,24.5115204]
[1768762392952,2.11219816,142.83,142.79,24.5115204]
[1768762393334,17.45219816,142.84,142.79,24.5115204]
[1768762393933,15.34,142.84,142.79,26.62371856]
[1768762394155,15.34,142.84,142.79,78.92371856]
[1768762395261,15.34,142.84,142.81,7.00231076]
[1768762396750,15.34,142.84,142.8,7.00280112]
[1768762397563,15.34,142.84,142.8,9.11499928]
[1768762399966,15.34,142.84,142.8,7.00280112]